[Event "44th Chess Olympiad Open 2022"]
[Site "Chennai"]
[Date "2022.07.30"]
[Round "2.33"]
[White "Shengelia, David"]
[Black "Gengler, Pierre"]
[Result "1-0"]
[WhiteElo "2462"]
[BlackElo "2194"]
[Annotator "TA"]
[PlyCount "97"]
[EventDate "2022.??.??"]
[TimeControl "60"]

{[%evp 9,97,29,32,30,31,5,46,0,2,0,41,-27,46,60,117,91,77,70,65,49,56,4,44,36,
81,52,66,58,58,63,60,61,62,38,40,33,48,32,37,50,67,60,57,58,39,18,31,27,31,13,
57,55,125,118,165,122,114,143,151,146,182,27,164,151,274,274,272,272,260,259,
447,438,386,383,470,506,674,595,3318,2971,1707,1668,1591,1387,5147,5064,4132,
1474,872,863]} 1. d4 {[%emt 0:00:03]} d5 {[%emt 0:00:06]} 2. Nf3 {[%emt 0:00:
00]} Nf6 {[%emt 0:00:08]} 3. Bf4 {[%emt 0:01:51]} c6 {[%emt 0:01:46]} 4. e3 {
[%emt 0:01:40]} e6 {[%emt 0:05:38]} 5. Bd3 {[%emt 0:01:16]} Nbd7 {[%emt 0:00:
00]} 6. Nbd2 {[%emt 0:00:52] D02:1 d4 d5 2 Nf3 sidelines, including 2...Nf6 3
g3 and 2...Nf6 3 Bf4.} Be7 {[%emt 0:00:33]} 7. Qe2 {[%emt 0:06:49] [#]} Qb6
$146 {[%emt 0:14:16]} ({Predecessor:} 7... c5 8. c3 Nh5 9. Be5 f5 10. h3 Nhf6
11. Bf4 c4 12. Bc2 b5 13. a3 a5 {1-0 (29) Arbutina,S (2329)-Kele,K (2108)
Hungary 2018}) 8. O-O-O {[%emt 0:03:03][%cal Yg2g4] White is slightly better.}
c5 {[%emt 0:00:23]} 9. c4 $1 {[%emt 0:04:16]} Nh5 {[%emt 0:02:15]} 10. cxd5 {
[%emt 0:10:08]} (10. Bg5 $14) 10... Nxf4 {[%emt 0:05:50]} (10... exd5 $11 11.
dxc5 Nxc5) 11. exf4 $14 {[%emt 0:00:21] aiming for Nc4.} Nf6 {[%emt 0:00:19]} (
11... cxd4 $2 12. Nc4 Qa6 13. dxe6 (13. Nxd4 Nc5 $16) 13... Qxe6 14. Qxe6 (14.
Nxd4 Qxe2 15. Bxe2 O-O $16) 14... fxe6 15. Nxd4 $16) ({Better is} 11... exd5
$14 12. Bc2 Qf6) 12. Nc4 {[%emt 0:20:52]} Qc7 {[%emt 0:02:35]} 13. d6 {[%emt 0:
00:00]} Bxd6 {[%emt 0:00:13]} 14. Nxd6+ {[%emt 0:00:07]} Qxd6 {[%emt 0:00:04]}
15. Bb5+ {[%emt 0:00:11]} ({White should play} 15. Qe5 $14 Qxe5 16. fxe5) 15...
Ke7 {[%emt 0:08:17]} 16. Qe5 {[%emt 0:06:24]} Bd7 {[%emt 0:15:23]} 17. Qxd6+ {
[%emt 0:07:34]} Kxd6 {[%emt 0:00:05]} 18. dxc5+ {[%emt 0:00:07]} Ke7 {[%emt 0:
00:00]} 19. Bxd7 {[%emt 0:00:13]} Nxd7 {[%emt 0:00:04]} 20. c6 $1 {[%emt 0:00:
00]} bxc6 {[%emt 0:00:08][%cal Yb7c6,Yc6c5]} 21. Rhe1 {[%emt 0:00:14]} (21. f5
$5) 21... g6 {[%emt 0:06:58]} 22. Nd4 {[%emt 0:07:28]} Rhc8 {[%emt 0:00:00]}
23. f5 {[%emt 0:04:52][%cal Rf5e6]} c5 $1 {[%emt 0:04:48] [#]} 24. Nxe6 {
[%emt 0:05:20]} fxe6 {[%emt 0:03:51]} 25. Rxe6+ {[%emt 0:00:03]} Kd8 {[%emt 0:
00:00]} 26. fxg6 {[%emt 0:00:07]} hxg6 {[%emt 0:00:07]} 27. Rxg6 {[%emt 0:00:
00]} Ke8 {[%emt 0:04:24]} 28. Rg7 {[%emt 0:04:12] White has compensation.} Ne5
{[%emt 0:01:12]} 29. Rb7 {[%emt 0:03:26] Hoping for Re1.} Nc6 {[%emt 0:04:21]}
30. Rd6 {[%emt 0:01:07] And now Rh6 would win.} Nd8 {[%emt 0:07:54]} (30... Kf8
$1 $14) 31. Rh7 $1 $16 {[%emt 0:00:14]} Kf8 {[%emt 0:00:14]} (31... Rab8 $16)
32. f4 {[%emt 0:01:15][%cal Yf2f4,Yf4f5] Strongly threatening f5.} Kg8 {
[%emt 0:02:39]} 33. Rdd7 {[%emt 0:00:50] Black must now prevent g4. White is
much more active. The black rooks are badly placed.} Rc6 {[%emt 0:01:35]} 34.
f5 {[%emt 0:01:54]} Rf6 {[%emt 0:00:12]} 35. Rdg7+ $1 {[%emt 0:04:07]} Kf8 {
[%emt 0:00:13] [#] Black cannot hold the game after this.} 36. g4 $1 {[%emt 0:
01:24][%cal Yg2g4,Yg4g5,Yg5g6]} ({And not} 36. Rxa7 Rxa7 37. Rxa7 Rxf5 $15)
36... Rf7 {[%emt 0:01:09]} (36... Nc6 $16 {keeps fighting.} 37. h4 Ne5) 37.
Rxf7+ $18 {[%emt 0:00:04]} Nxf7 {[%emt 0:00:08] Endgame KRN-KR} 38. g5 $1 {
[%emt 0:00:03] Threatens to win with g6.} Kg8 {[%emt 0:00:44]} 39. g6 {[%emt 0:
00:10]} Ng5 {[%emt 0:00:00] [#]} (39... Ne5 40. f6 Nxg6 41. Rg7+ Kf8) 40. Re7
$1 {[%emt 0:01:48]} Rf8 {[%emt 0:00:35]} 41. h4 {[%emt 0:30:45][%cal Yh2h4,
Yh4h5,Yh5h6]} Nf3 {[%emt 0:05:06]} 42. h5 {[%emt 0:00:00] White wants to mate
with h6. White is clearly winning.} Nh4 {[%emt 0:12:38]} 43. h6 {[%emt 0:00:00]
} Rc8 {[%emt 0:00:00]} 44. Rg7+ {[%emt 0:00:00]} Kh8 {[%emt 0:00:14]} 45. Rh7+
{[%emt 0:00:00]} Kg8 {[%emt 0:00:09]} 46. Rf7 {[%emt 0:00:00] h7+ is the
strong threat.} Kh8 {[%emt 0:04:04]} 47. g7+ {[%emt 0:00:00]} Kg8 {[%emt 0:00:
33]} 48. h7+ $1 {[%emt 0:00:00] Deflection} Kxh7 {[%emt 0:00:28]} 49. Rf8 {
[%emt 0:00:00] Weighted Error Value: White=0.11 (very precise) /Black=0.33} 1-0

[Event "44th Chess Olympiad Open 2022"]
[Site "Chennai"]
[Date "2022.07.30"]
[Round "2.33"]
[White "Steil-Antoni, Fiona"]
[Black "Blohberger, Felix"]
[Result "1/2-1/2"]
[WhiteElo "2218"]
[BlackElo "2492"]
[Annotator "TA"]
[PlyCount "60"]
[EventDate "2022.??.??"]
[TimeControl "60"]

{[%evp 9,60,15,24,8,30,16,29,-2,0,0,3,-16,-16,-14,14,2,7,0,20,-8,43,66,75,71,
175,169,174,171,179,168,167,132,177,147,147,144,137,139,150,108,115,35,49,0,0,
0,496,-162,1129,603,572,547,1159]} 1. e4 {[%emt 0:00:03]} c6 {[%emt 0:00:08]}
2. d4 {[%emt 0:00:13]} d5 {[%emt 0:00:15]} 3. e5 {[%emt 0:00:27]} Bf5 {[%emt 0:
00:00]} 4. g4 {[%emt 0:00:22]} Bd7 {[%emt 0:03:57]} 5. Nc3 {[%emt 0:02:47]} e6
{[%emt 0:01:08]} 6. Be3 {[%emt 0:01:52] B12: Caro-Kann: Advance Variation.} b6
{[%emt 0:15:31] [#]} 7. h4 $146 {[%emt 0:27:09]} ({Predecessor:} 7. Qd3 c5 8.
O-O-O Nc6 9. f4 cxd4 10. Bxd4 Nxd4 11. Qxd4 Ne7 12. Nf3 h5 13. f5 {1-0 (28)
Bartakovic,T (2108)-Vlaic,B (2265) Sibenik 2011}) 7... c5 {[%emt 0:04:39]} 8.
Nce2 {[%emt 0:02:08] White has an edge.} Nc6 {[%emt 0:11:20]} 9. f4 {[%emt 0:
00:00]} h5 {[%emt 0:02:30]} 10. g5 {[%emt 0:03:12]} Nge7 {[%emt 0:01:54]} 11.
Bh3 {[%emt 0:01:00]} cxd4 {[%emt 0:05:26]} 12. Nxd4 {[%emt 0:00:58]} Nxd4 {
[%emt 0:00:08]} 13. Qxd4 {[%emt 0:05:12]} Rc8 {[%emt 0:01:41]} 14. Qd3 {
[%emt 0:05:42]} d4 {[%emt 0:17:17]} (14... Ng6 $11) 15. Bxd4 $14 {[%emt 0:00:
00][%cal Ye3d4,Yd4c3,Yc3e5]} Bc6 {[%emt 0:10:29]} 16. Rh2 {[%emt 0:00:00]} Nf5
{[%emt 0:02:40]} (16... Ng6 $2 17. Bxe6 $1 Nxf4 18. Bxf7+ $1 Ke7 19. Qd2 (19.
Qc4 Be8 $11) 19... Kxf7 20. Qxf4+ Kg8 21. e6 $18) (16... Qd5 $16 {is a better
defense.}) 17. Bxf5 $18 {[%emt 0:00:00]} exf5 18. Qxf5 {[%emt 0:00:00] Hoping
for 0-0-0.} Be7 19. O-O-O {[%emt 0:03:53]} O-O 20. Bc3 {[%emt 0:07:57]} Qe8 {
[%emt 0:02:30]} 21. e6 {[%emt 0:01:45]} fxe6 {[%emt 0:12:45]} 22. Qxe6+ {
[%emt 0:00:00]} ({Much less strong is} 22. Qe5 Qg6 $16) 22... Qf7 {[%emt 0:00:
00] [#]} 23. Qxf7+ {[%emt 0:00:00]} Rxf7 {[%emt 0:00:00]} 24. Be5 {[%emt 0:00:
00]} Bc5 {[%emt 0:00:23]} 25. Rh3 {[%emt 0:04:08]} ({White should play} 25. b3
$16) 25... Be4 $14 {[%emt 0:02:40] This bishop pair is nice.} 26. Rc3 {[%emt 0:
06:28]} (26. Re1 $1 $14) 26... Be3+ $1 $11 {[%emt 0:00:11]} 27. Rxe3 {[%emt 0:
00:30]} Bxc2 {[%emt 0:00:30]} (27... Rxc2+ $11 28. Kb1 Rd2+ 29. Kc1 Rc2+ 30.
Kb1 Rd2+ 31. Kc1 Rc2+) 28. Kd2 $4 {[%emt 0:00:30]} (28. Rd6 $18 {avoids the
disaster.}) 28... Be4 $4 {[%emt 0:00:30]} 29. Ke1 {[%emt 0:00:30]} Bc2 {
[%emt 0:00:30]} 30. Rd2 {[%emt 0:00:30]} Be4 {[%emt 0:00:30] Weighted Error
Value: White=0.77/Black=0.35. An unexpected result.} 1/2-1/2

[Event "44th Chess Olympiad Open 2022"]
[Site "Chennai"]
[Date "2022.07.30"]
[Round "2.33"]
[White "Schartz, Alain"]
[Black "Horvath, Dominik"]
[Result "0-1"]
[WhiteElo "2086"]
[BlackElo "2488"]
[Annotator "ChessBase"]
[PlyCount "72"]
[EventDate "2022.??.??"]
[TimeControl "60"]

1. e4 {[%emt 0:00:03]} c5 {[%emt 0:00:20]} 2. Nf3 {[%emt 0:00:24]} Nc6 {
[%emt 0:00:05]} 3. c3 {[%emt 0:00:46]} Nf6 {[%emt 0:00:08]} 4. e5 {[%emt 0:00:
00]} Nd5 {[%emt 0:00:05]} 5. d4 {[%emt 0:01:08]} cxd4 {[%emt 0:00:05]} 6. cxd4
{[%emt 0:01:16]} d6 {[%emt 0:00:06]} 7. Bc4 {[%emt 0:03:18]} dxe5 {[%emt 0:00:
00]} 8. Nxe5 {[%emt 0:12:41]} Be6 {[%emt 0:15:49]} 9. O-O {[%emt 0:17:02]} g6 {
[%emt 0:15:57]} 10. Bb5 {[%emt 0:15:51]} Rc8 {[%emt 0:07:33]} 11. Qa4 {[%emt 0:
00:00]} a6 {[%emt 0:05:17]} 12. Bxc6+ {[%emt 0:08:32]} bxc6 {[%emt 0:00:06]}
13. Nc3 {[%emt 0:00:35]} Bg7 {[%emt 0:01:18]} 14. Nxd5 {[%emt 0:01:18]} Qxd5 {
[%emt 0:02:31]} 15. Be3 {[%emt 0:03:41]} O-O {[%emt 0:06:57]} 16. b4 {[%emt 0:
00:00]} Qb5 {[%emt 0:02:28]} 17. Qxb5 {[%emt 0:02:50]} cxb5 {[%emt 0:00:38]}
18. a4 {[%emt 0:01:38]} Rc3 {[%emt 0:04:40]} 19. axb5 {[%emt 0:01:05]} axb5 {
[%emt 0:00:03]} 20. Ra7 {[%emt 0:01:23]} Re8 {[%emt 0:03:12]} 21. Rb7 {[%emt 0:
00:00]} f6 {[%emt 0:00:35]} 22. Nf3 {[%emt 0:01:52]} Rb3 {[%emt 0:00:45]} 23.
Bd2 {[%emt 0:01:17]} Bd5 {[%emt 0:01:30]} 24. Rb6 {[%emt 0:02:58]} g5 {[%emt 0:
00:00]} 25. Rc1 {[%emt 0:01:21]} Bc4 {[%emt 0:01:02]} 26. h3 {[%emt 0:00:20]}
h5 {[%emt 0:00:34]} 27. Ne1 {[%emt 0:00:42]} Ra8 {[%emt 0:00:44]} 28. Nf3 {
[%emt 0:01:13]} Ra2 {[%emt 0:00:26]} 29. Be1 {[%emt 0:00:06]} Rd3 {[%emt 0:00:
00]} 30. Rb8+ {[%emt 0:00:44]} Kf7 {[%emt 0:00:09]} 31. Rd8 {[%emt 0:00:11]}
Bh6 {[%emt 0:00:41]} 32. Rb1 {[%emt 0:00:48]} g4 {[%emt 0:07:05]} 33. hxg4 {
[%emt 0:00:04]} hxg4 {[%emt 0:00:02]} 34. Nh4 {[%emt 0:00:43]} Rda3 {[%emt 0:
00:00]} 35. Nf5 {[%emt 0:00:36]} Bg5 {[%emt 0:00:04]} 36. Kh2 {[%emt 0:00:51]}
Bd3 {[%emt 0:00:06]} 0-1

[Event "44th Chess Olympiad Open 2022"]
[Site "Chennai"]
[Date "2022.07.30"]
[Round "2.34"]
[White "Gazik, Viktor"]
[Black "Wong, Yinn Long"]
[Result "1/2-1/2"]
[WhiteElo "2544"]
[BlackElo "2381"]
[Annotator "TA"]
[PlyCount "99"]
[EventDate "2022.??.??"]
[TimeControl "60"]

{[%evp 10,99,29,32,32,0,7,-11,-7,-13,-4,-11,-11,-17,0,-3,36,0,30,34,39,6,0,0,
58,64,66,72,68,55,59,0,0,0,52,16,22,8,20,-22,0,-19,-25,-53,-30,-72,0,-28,-4,-2,
0,-29,-31,-23,14,0,0,0,0,0,0,0,0,0,0,0,0,0,0,0,0,0,0,0,0,0,0,0,0,0,0,0,0,0,0,0,
0,0,0,0,0,0]} 1. e4 {[%emt 0:00:03]} c5 {[%emt 0:00:15]} 2. Nf3 {[%emt 0:00:16]
} Nc6 {[%emt 0:00:11]} 3. Bb5 {[%emt 0:00:00]} d6 {[%emt 0:00:16]} 4. O-O {
[%emt 0:01:23]} Bd7 {[%emt 0:00:17]} 5. Re1 {[%emt 0:15:51]} Nf6 {[%emt 0:00:
00]} 6. h3 {[%emt 0:05:48]} e6 {[%emt 0:00:41] [#] B51: Sicilian: Moscow
Variation (3 Bb5+) without 3...Bd7.} 7. a4 $146 {[%emt 0:08:53]} ({Predecessor:
} 7. c3 Be7 8. d4 cxd4 9. cxd4 d5 10. e5 Ne4 11. Bf1 O-O 12. Nbd2 Nxd2 13. Bxd2
Rc8 14. a3 Na5 15. Bd3 Nc4 16. Bc1 h6 17. Bc2 Bb5 18. Qd3 g6 19. Qd1 Qc7 20.
Bd3 Rfe8 21. b3 {1-0 (21) Carlsen,M (2850)-Akopian,V (2648) Berlin 2015}) 7...
Be7 {[%emt 0:06:51]} 8. b3 {[%emt 0:00:39]} a6 {[%emt 0:06:11]} 9. Bf1 {
[%emt 0:00:04]} O-O {[%emt 0:01:33]} 10. Bb2 {[%emt 0:00:36]} d5 {[%emt 0:00:
00]} 11. e5 {[%emt 0:03:30]} Ne8 {[%emt 0:01:05]} 12. d4 {[%emt 0:08:14]} g6 {
[%emt 0:16:35]} 13. c4 {[%emt 0:11:29]} dxc4 {[%emt 0:01:10]} 14. dxc5 {
[%emt 0:12:42]} Bxc5 {[%emt 0:14:49]} 15. Nc3 {[%emt 0:00:21] aiming for Qd2.}
Na5 {[%emt 0:05:09]} 16. Ne4 {[%emt 0:11:58]} ({Reject} 16. bxc4 {[#]} Bxf2+ $1
17. Kxf2 Qb6+ 18. Kg3 Qxb2 $15) 16... Be7 {[%emt 0:01:16]} (16... Bb4 $11 17.
bxc4 Bc6) 17. bxc4 $14 {[%emt 0:00:24][%cal Ye4f6] Strongly threatening Nf6+!}
Bc6 {[%emt 0:01:19]} 18. Nfd2 {[%emt 0:03:29] White is more active.} b6 {
[%emt 0:04:28]} 19. Qg4 {[%emt 0:04:35]} Qc7 {[%emt 0:07:25]} 20. Nf6+ {
[%emt 0:02:55]} (20. Qf3 $14) 20... Nxf6 $11 {[%emt 0:03:58]} 21. exf6 {
[%emt 0:00:02]} Bb4 {[%emt 0:01:19] [#]} ({Black should play} 21... Bd6 $1 $11)
22. Ne4 $1 {[%emt 0:00:42]} Bxe4 {[%emt 0:02:54]} 23. Rxe4 {[%emt 0:00:28]}
Rfd8 {[%emt 0:00:36]} 24. Qh4 {[%emt 0:01:15]} Nb7 {[%emt 0:05:58]} (24... Qc5
$5 {[%cal Ra5b3]}) 25. c5 {[%emt 0:02:54]} Bxc5 {[%emt 0:00:22]} 26. Rc1 {
[%emt 0:00:05]} Qd6 $1 {[%emt 0:03:44]} 27. Bc4 {[%emt 0:02:14][%cal Ye4e6]
And now Rxe6! would win.} Re8 {[%emt 0:03:34]} (27... Qd2 $5 {[%cal Rd2b2]} 28.
Re2 Qd7 $15) 28. Rce1 {[%emt 0:00:02][%cal Yc4e6] Hoping for Bxe6!} Qf8 {
[%emt 0:03:42]} (28... Qd2 $5 {[%cal Rd2b2]} 29. R1e2 Qd1+ 30. Re1 Qc2 $17) 29.
Rxe6 $1 {[%emt 0:03:31]} Nd6 {[%emt 0:00:48]} (29... fxe6 $2 30. Rxe6 Rxe6 31.
Bxe6+ Kh8 32. f7+ Qg7 33. Bxg7+ Kxg7 34. Qe4 $18) 30. R6e2 {[%emt 0:00:35]}
Nxc4 {[%emt 0:00:27]} 31. Qxc4 {[%emt 0:00:06][%cal Ye2e7]} a5 {[%emt 0:00:32]}
32. Qb5 {[%emt 0:00:49][%cal Re2e8] The position is equal.} Rxe2 {[%emt 0:00:
00]} 33. Rxe2 {[%emt 0:00:03]} Rd8 {[%emt 0:00:30]} 34. g3 {[%emt 0:00:54]} Qd6
{[%emt 0:00:43] ( -> ...Qxg3+)} 35. Kh2 {[%emt 0:00:31]} Qf8 {[%emt 0:00:41]}
36. Kg2 {[%emt 0:00:21]} Qd6 {[%emt 0:00:25]} 37. Re8+ {[%emt 0:00:39]} Rxe8 {
[%emt 0:00:05]} 38. Qxe8+ {[%emt 0:00:02] Endgame KQB-KQB} Qf8 {[%emt 0:00:05]}
39. Qc6 {[%emt 0:00:04]} Qd8 {[%emt 0:00:30]} 40. g4 {[%emt 0:00:00]} h6 {
[%emt 0:00:53]} 41. Bc3 {[%emt 0:08:42]} Kh7 {[%emt 0:03:37]} 42. Qe4 {[%emt 0:
09:29]} Bb4 {[%emt 0:06:12]} 43. Bd4 {[%emt 0:03:34]} Bc5 {[%emt 0:01:54]} 44.
Bxc5 {[%emt 0:07:10]} bxc5 {[%emt 0:00:06] KQ-KQ} 45. Qe7 {[%emt 0:00:02]} Qd5+
{[%emt 0:03:35]} 46. Kg1 {[%emt 0:00:00]} Qd1+ {[%emt 0:00:00]} 47. Kh2 {
[%emt 0:00:41]} Qd5 {[%emt 0:00:05]} 48. Kg1 {[%emt 0:03:20] Qf8 would kill
now.} Qd1+ {[%emt 0:00:11]} 49. Kh2 {[%emt 0:00:13]} Qd5 {[%emt 0:00:04]} 50.
Kg1 {[%emt 0:00:23] Weighted Error Value: White=0.09 (flawless) /Black=0.09 
(flawless)} 1/2-1/2

[Event "44th Chess Olympiad Open 2022"]
[Site "Chennai"]
[Date "2022.07.30"]
[Round "2.34"]
[White "Ftacnik, Lubomir"]
[Black "Poh, Yu Tian"]
[Result "0-1"]
[WhiteElo "2483"]
[BlackElo "2118"]
[Annotator "TA"]
[PlyCount "114"]
[EventDate "2022.??.??"]
[TimeControl "60"]

{[%evp 14,114,17,0,0,16,19,18,15,0,0,0,0,0,0,7,-4,-53,-57,-56,-50,-94,-93,-94,
-83,-85,-87,-95,-79,-79,-79,-79,-79,-85,-84,-84,-84,-93,-79,-83,-82,-81,-82,
-122,-90,-98,-86,-109,-64,-70,-50,-91,-90,-102,-94,-90,-95,-322,-320,-305,-302,
-269,-344,-349,-314,-504,-493,-502,-489,-495,0,-473,-473,-454,-345,-345,-330,
-473,-197,-473,-473,-1376,-473,-1742,-1687,-1967,-1821,-11692,-10315,-6103,
-6095,-8399,-5370,-5112,-4627,-9002,-4618,-6333,-6119,-5270,-5270,-5065,-4614]
} 1. d4 {[%emt 0:00:05]} Nf6 {[%emt 0:00:11]} 2. Nf3 {[%emt 0:00:17]} g6 {
[%emt 0:00:08]} 3. c4 {[%emt 0:00:06]} Bg7 {[%emt 0:00:10]} 4. Nc3 {[%emt 0:00:
00]} d5 {[%emt 0:00:08]} 5. cxd5 {[%emt 0:00:09]} Nxd5 {[%emt 0:00:06]} 6. e4 {
[%emt 0:00:08]} Nxc3 {[%emt 0:00:06]} 7. bxc3 {[%emt 0:00:06]} c5 {[%emt 0:00:
00]} 8. h3 {[%emt 0:00:12]} Nc6 {[%emt 0:01:00][%cal Rc5d4] D85: Exchange
Grünfeld: Unusual White 7th moves and lines with 7 Nf3.} 9. Be3 {[%emt 0:00:
00]} cxd4 {[%emt 0:00:16]} 10. cxd4 {[%emt 0:00:10]} f5 {[%emt 0:00:10] [#]
The position is equal.} 11. exf5 $146 {[%emt 0:10:49]} ({Predecessor:} 11. Bd3
fxe4 12. Bxe4 Bf5 13. Bxf5 Qa5+ 14. Ke2 gxf5 15. Qd3 O-O 16. Rhc1 Rad8 17. Qc4+
{½-½ (31) Svidler,P (2739)-Sutovsky,E (2637) Caleta 2015}) 11... Qa5+ {
[%emt 0:03:22]} 12. Bd2 $1 {[%emt 0:06:46]} Qxf5 {[%emt 0:03:51]} 13. Rc1 {
[%emt 0:07:07]} Be6 {[%emt 0:03:50]} (13... Nxd4 $2 14. Nxd4 Qe5+ 15. Be3 Qa5+
16. Qd2 Qxd2+ 17. Kxd2 $18) 14. Rc5 {[%emt 0:10:02]} Bd5 $1 {[%emt 0:01:57]}
15. Bc4 {[%emt 0:03:17]} (15. Be3 $11 {might be stronger.}) 15... Qe6+ $1 $15 {
[%emt 0:02:04]} 16. Qe2 {[%emt 0:04:01]} Qxe2+ {[%emt 0:01:40]} 17. Kxe2 {
[%emt 0:07:29]} Bxf3+ {[%emt 0:00:39]} 18. gxf3 {[%emt 0:00:06]} Nxd4+ {
[%emt 0:01:16]} 19. Ke3 {[%emt 0:03:59]} Rd8 {[%emt 0:03:01]} 20. Rd5 {[%emt 0:
00:00]} Nf5+ {[%emt 0:03:35]} 21. Ke2 {[%emt 0:00:57]} Rxd5 {[%emt 0:01:34]}
22. Bxd5 {[%emt 0:00:05] A strong pair of Bishops.} b6 {[%emt 0:02:17]} 23. Rc1
{[%emt 0:07:38]} Kd7 {[%emt 0:02:20] Against Rc7+} 24. Bc6+ {[%emt 0:13:04]}
Ke6 {[%emt 0:01:18]} 25. Be3 {[%emt 0:00:38]} Bd4 {[%emt 0:06:11]} 26. Ba4 {
[%emt 0:00:21]} Rd8 {[%emt 0:04:19]} 27. Rc7 {[%emt 0:01:46]} a5 {[%emt 0:00:
00]} 28. Rb7 {[%emt 0:03:04]} Kf6 {[%emt 0:06:47]} 29. f4 {[%emt 0:05:30]} Rd6
{[%emt 0:02:58]} 30. Bb3 {[%emt 0:01:38]} h5 {[%emt 0:05:15]} 31. Rb8 {[%emt 0:
00:00]} e6 {[%emt 0:06:15]} (31... Bc5 $5 {[%cal Rf5d4]}) 32. Rb7 {[%emt 0:00:
00] Black continues to play with concentration.} Bc5 {[%emt 0:01:06]} 33. Ba4 {
[%emt 0:01:57]} Bxe3 {[%emt 0:02:25]} 34. fxe3 $17 {[%emt 0:00:11] Endgame
KRB-KRN} e5 {[%emt 0:04:18]} 35. Bb3 $2 {[%emt 0:02:32]} (35. fxe5+ $17 Kxe5
36. Rb8) 35... exf4 $19 {[%emt 0:01:25]} 36. exf4 {[%emt 0:00:08][%csl Gb3]
[%cal Rb7f7] [#]} Nd4+ {[%emt 0:00:37]} 37. Ke3 {[%emt 0:00:22][%csl Gb3][%cal
Rb7f7]} Nxb3 {[%emt 0:00:57]} 38. axb3 {[%emt 0:00:01] KR-KR} g5 {[%emt 0:00:
13]} 39. fxg5+ {[%emt 0:04:26]} (39. Rc7 g4 40. hxg4 hxg4 41. b4) 39... Kxg5 {
[%emt 0:00:05]} 40. Kf2 {[%emt 0:00:41]} Kh4 {[%emt 0:00:24]} 41. Kg2 {[%emt 0:
30:46]} Kg5 {[%emt 0:32:43]} 42. Kf2 $1 {[%emt 0:00:00]} Kf4 {[%emt 0:00:00]}
43. Rb8 {[%emt 0:00:00]} Ke4 {[%emt 0:00:00]} 44. Ke2 {[%emt 0:00:00]} Kd4 {
[%emt 0:00:00] [#] Threatens to win with ...Kc3.} 45. Kd2 {[%emt 0:00:00]} (45.
Rc8 $142) 45... Rg6 {[%emt 0:00:00]} (45... Rf6 $142 46. h4 Kc5) 46. Rd8+ $2 {
[%emt 0:01:26]} (46. h4 {was the only defense.}) 46... Kc5 {[%emt 0:00:00]
White must now prevent ...Rd6+. Black is clearly winning.} 47. Rh8 {[%emt 0:00:
48]} (47. Kc3 $142) 47... Rg5 {[%emt 0:00:00]} (47... Kb4 $142 48. Rxh5 Rg3)
48. h4 {[%emt 0:02:08]} (48. Kc3 $142 Rg3+ 49. Kb2 Rxh3 50. Rf8) 48... Rf5 {
[%emt 0:00:00] Strongly threatening ...Kb4.} 49. Rh6 {[%emt 0:02:54]} b5 {
[%emt 0:00:00] aiming for ...Kb4.} 50. Kc3 {[%emt 0:00:16]} Rf3+ {[%emt 0:00:
00]} 51. Kc2 {[%emt 0:00:02]} Kb4 {[%emt 0:00:00]} 52. Rxh5 {[%emt 0:00:04]}
Rc3+ {[%emt 0:00:00]} 53. Kd2 {[%emt 0:00:53]} Rxb3 {[%emt 0:00:00]} 54. Rg5 {
[%emt 0:00:53]} Rh3 {[%emt 0:00:00]} 55. h5 {[%emt 0:00:05]} a4 {[%emt 0:00:00]
[%cal Ya5a4,Ya4a3] ( -> ...a3)} 56. Kc2 {[%emt 0:00:00]} Rh2+ {[%emt 0:00:00]}
57. Kb1 {[%emt 0:00:16]} a3 {[%emt 0:00:00] Weighted Error Value: White=0.85/
Black=0.32} 0-1